bitfinex-derivatives/quotes_SOLF0:USTF0_20251202
["timestamp","ask_amount","ask_price","bid_price","bid_amount"]
[1764643900250,3.3017975,127.33,127.3,3.27]
[1764643900548,0.0517975,127.33,127.31,3.27]
[1764643902146,3.3017975,127.33,127.31,3.27]
[1764643903353,0.0517975,127.33,127.31,3.27]
[1764643903746,3.3017975,127.33,127.31,3.27]
[1764643903952,3.3017975,127.33,127.3,67.28]
[1764643904547,3.3017975,127.33,127.3,70.55]
[1764643909458,3.3017975,127.33,127.31,3.27]
[1764643909659,6.02539163,127.32,127.31,3.27]
[1764643909861,3.3017975,127.33,127.31,3.27]
[1764643910161,10.3705975,127.33,127.31,3.27]
[1764643910555,10.3705975,127.33,127.3,70.55]
[1764643912262,6.03403412,127.32,127.3,70.55]
[1764643912464,10.3705975,127.33,127.3,70.55]
[1764643912762,9.02640569,127.32,127.3,70.55]
[1764643912949,10.3705975,127.33,127.3,70.55]
[1764643913256,9.02636877,127.32,127.3,70.55]
[1764643913453,9.02636877,127.31,127.3,70.55]
[1764643915655,9.03215506,127.31,127.3,70.55]
[1764643916162,0.0517975,127.33,127.31,3.27]
[1764643916364,9.0451629,127.32,127.31,3.27]
[1764643918465,6.04733175,127.32,127.31,3.27]
[1764643920157,2.64733175,127.32,127.31,3.27]
[1764643920558,0.0517975,127.33,127.31,3.27]
[1764643920758,0.0517975,127.33,127.31,10.3393]
[1764643920958,0.0517975,127.33,127.32,3.14]
[1764643921264,0.0517975,127.33,127.31,10.73156213]
[1764643921265,6.30119713,127.33,127.3,67.28]
[1764643921561,3.3017975,127.33,127.31,3.14]
[1764643923671,6.24950124,127.32,127.3,67.28]
[1764643923870,3.25,127.32,127.3,70.42]
[1764643924573,0.0517975,127.33,127.31,3.14]
[1764643924764,3.3017975,127.33,127.31,3.14]
[1764643926971,3.3017975,127.33,127.3,70.42]
[1764643927564,2.9906577,127.32,127.3,70.42]
[1764643927869,3.3017975,127.33,127.3,70.42]
[1764643928071,2.9906577,127.32,127.3,70.42]
[1764643928272,3.3017975,127.33,127.3,70.42]
[1764643928469,2.99059418,127.32,127.3,70.42]
[1764643928675,2.99059418,127.31,127.3,70.42]
[1764643929673,0.0517975,127.33,127.31,3.14]
[1764643929876,2.99042389,127.32,127.31,3.14]
[1764643932172,8.97765341,127.32,127.31,3.14]
[1764643942684,3.17,127.31,127.26,24.10885714]
[1764643942891,9.02415599,127.3,127.27,3.14]
[1764643943186,0.05994903,127.3,127.28,3.14]
[1764643943584,0.05994903,127.3,127.29,3.14]
[1764643946386,9.02751723,127.3,127.29,3.14]
[1764643946690,12.19751723,127.3,127.27,70.94226213]
[1764643946883,3.22994903,127.3,127.28,3.14]
[1764643948096,0.05994903,127.3,127.28,3.14]
[1764643949897,5.9731675,127.29,127.28,3.14]
[1764643950100,0.05994903,127.3,127.28,10.2113]
[1764643950402,0.05994903,127.3,127.29,3.13]
[1764643950703,9.02652466,127.3,127.29,3.13]
[1764643951303,0.05994903,127.3,127.29,3.13]
[1764643952398,0.05994903,127.3,127.29,5.47384959]
[1764643953594,0.05994903,127.3,127.29,72.75384959]
[1764643954500,7.33251812,127.35,127.32,3.13]
[1764643954804,8.97040664,127.34,127.33,70.39]
[1764643956506,3.08,127.33,127.32,0.05518356]
[1764643956716,12.05040664,127.33,127.32,0.05518356]
[1764643959115,5.97708929,127.33,127.32,3.19518356]
[1764643959625,0.05992712,127.35,127.32,3.19518356]
[1764643959805,0.05992712,127.35,127.34,5.48384959]
[1764643960002,9.21570179,127.35,127.34,67.26]
[1764643960715,3.2,127.34,127.32,0.05518356]
[1764643960917,12.14788728,127.33,127.32,0.05518356]
[1764643961216,3.2,127.32,127.29,67.26]
[1764643961412,9.15480126,127.31,127.29,67.26]
[1764643961614,3.2,127.31,127.29,67.26]
[1764643962005,3.25135983,127.31,127.29,67.26]
[1764643965315,12.150627,127.3,127.29,67.26]
[1764643965816,8.950627,127.3,127.29,70.4]
[1764643966018,5.95707714,127.3,127.29,70.4]
[1764643968520,12.1503132,127.3,127.29,67.26]
[1764643969518,3.2,127.29,127.24,3.14]
[1764643969818,3.2,127.27,127.25,3.14]
[1764643970414,3.25687646,127.28,127.25,3.14]
[1764643970614,9.15434956,127.27,127.25,3.14]
[1764643970913,3.2,127.27,127.25,3.14]
[1764643972421,3.2,127.27,127.24,70.4]
[1764643972622,3.2,127.26,127.24,70.4]
[1764643972816,10.2724,127.27,127.25,3.14]
[1764643973019,10.2724,127.27,127.24,70.4]
[1764643974115,10.2724,127.27,127.25,3.14]
[1764643974321,7.0724,127.27,127.25,3.14]
[1764643974521,0.05687646,127.28,127.25,5.48384959]
[1764643975013,0.05687646,127.28,127.26,3.14]
[1764643975822,7.12847646,127.28,127.26,3.14]
[1764643976022,10.32847646,127.28,127.26,3.14]
[1764643976820,3.2,127.26,127.23,2.34384959]
[1764643977028,113.26067646,127.28,127.24,3.14]
[1764643977219,3.2,127.27,127.24,3.14]
[1764643978330,7.0729,127.26,127.24,3.14]
[1764643978829,3.2,127.27,127.24,3.14]
[1764643979725,3.25687646,127.28,127.24,3.14]
[1764643981023,0.05687646,127.28,127.26,3.14]
[1764643989435,3.20687646,127.28,127.25,2.34384959]
[1764643989638,0.05687646,127.28,127.26,3.13]
[1764643993542,3.20687646,127.28,127.24,3.13]
[1764643993740,3.20687646,127.28,127.25,3.13]
[1764643997539,3.20687646,127.28,127.26,3.13]
[1764643997738,3.15,127.27,127.25,67.28]
[1764643997942,3.15,127.27,127.25,70.41]
[1764643998142,10.27877646,127.28,127.25,70.41]
[1764643998545,3.15,127.27,127.25,70.41]
[1764643998737,10.27877646,127.28,127.26,3.13]
[1764643998937,3.15,127.26,127.21,27.93507269]
[1764643999146,3.19993094,127.25,127.23,3.13]
[1764643999748,0.04993094,127.25,127.23,3.13]
[1764644000739,3.19993094,127.25,127.23,3.13]
[1764644000940,0.04993094,127.25,127.23,3.13]
[1764644002050,3.19993094,127.25,127.23,3.13]
[1764644002251,10.27323094,127.25,127.23,3.13]
[1764644002750,3.15,127.24,127.22,70.41]
[1764644003449,7.0742,127.23,127.22,70.41]
[1764644004155,3.15,127.22,127.21,4.66564451]
[1764644005347,3.15,127.22,127.14,110.1194]
[1764644005348,3.15,127.15,127.1,3.13]
[1764644005541,0.05981922,127.14,127.11,3.13]
[1764644006651,0.05981922,127.14,127.13,3.13]
[1764644007251,7.0775,127.18,127.13,3.13]
[1764644007457,113.2252,127.2,127.15,3.13]
[1764644007650,3.15,127.19,127.16,3.13]
[1764644008055,3.15,127.19,127.14,3.13]
[1764644008455,3.2097088,127.18,127.15,3.18483808]
[1764644011561,0.0597088,127.18,127.15,3.18483808]
[1764644013061,0.0597088,127.18,127.17,5.49384959]
[1764644013359,3.11,127.26,127.18,3.15]
[1764644013556,3.11,127.26,127.17,2.34384959]
[1764644013557,3.11,127.26,127.22,3.15]
[1764644014264,0.05705489,127.25,127.23,0.05441071]
[1764644014667,0.05705489,127.25,127.23,3.20441071]
[1764644015365,0.05705489,127.25,127.17,117.1703]
[1764644015366,3.11,127.23,127.17,3.15]
[1764644016361,0.05047722,127.21,127.17,3.15]
[1764644016561,0.05047722,127.21,127.19,3.20703987]
[1764644019379,3.18,127.26,127.19,3.20703987]
[1764644019674,3.18,127.26,127.19,3.15]
[1764644020274,0.05581054,127.24,127.22,3.09]
[1764644022677,3.18,127.29,127.23,3.09]
[1764644023876,0.05825449,127.27,127.26,3.09]
[1764644030684,3.23825449,127.27,127.25,0.05497088]
[1764644034382,3.23825449,127.27,127.25,3.14497088]
[1764644035786,0.05825449,127.27,127.25,3.14497088]
[1764644041389,3.23825449,127.27,127.25,3.14497088]
[1764644041780,0.05825449,127.27,127.25,3.14497088]
[1764644042592,3.23825449,127.27,127.25,3.14497088]
[1764644044787,3.23825449,127.27,127.25,0.05497088]
[1764644044990,9.18403386,127.26,127.22,3.09]
[1764644045292,3.18,127.25,127.22,3.09]
[1764644045991,3.18,127.25,127.22,3.14823089]
[1764644046691,3.18,127.25,127.22,0.05823089]
[1764644048591,3.18,127.25,127.22,3.20823089]
[1764644048898,3.34,127.24,127.22,3.20823089]
[1764644049196,3.39669739,127.24,127.22,3.20823089]
[1764644049594,3.39669739,127.24,127.22,0.05823089]
[1764644054389,3.39669739,127.24,127.22,3.20823089]
[1764644054590,3.39669739,127.24,127.22,0.05823089]
[1764644055998,3.39669739,127.24,127.22,3.20823089]
[1764644056389,9.36332824,127.23,127.22,0.05823089]
[1764644057198,12.33733111,127.23,127.22,0.05823089]
[1764644059496,8.99733111,127.23,127.22,3.20823089]
[1764644059698,0.05669739,127.24,127.22,3.20823089]
[1764644060996,3.39669739,127.24,127.22,3.20823089]
[1764644061502,0.05669739,127.24,127.22,3.20823089]
[1764644062804,7.13059739,127.24,127.22,3.20823089]
[1764644063603,10.47059739,127.24,127.22,3.20823089]
[1764644065405,7.13059739,127.24,127.22,3.20823089]
[1764644065905,10.47059739,127.24,127.22,3.20823089]
[1764644066093,7.13059739,127.24,127.22,3.20823089]
[1764644066905,0.05669739,127.24,127.22,3.20823089]
[1764644074303,0.05669739,127.24,127.23,3.07]
[1764644074505,0.05669739,127.24,127.23,5.41591349]
[1764644076510,9.03805575,127.24,127.23,67.3]
[1764644077203,12.10805575,127.24,127.23,67.3]
[1764644078207,9.03805575,127.24,127.23,70.37]
[1764644080208,12.17805575,127.24,127.23,67.3]
[1764644081819,9.03805575,127.24,127.23,70.38]
[1764644082118,9.03805575,127.24,127.23,3.08]
[1764644082518,6.05851517,127.24,127.23,3.08]
[1764644089417,9.03967821,127.24,127.23,3.08]
[1764644090005,3.14,127.23,127.22,0.05823089]
[1764644090209,8.96872425,127.23,127.22,70.43823089]
[1764644091110,5.98741049,127.23,127.22,70.43823089]
[1764644094222,9.12741049,127.23,127.22,0.05823089]
[1764644094429,12.10876695,127.23,127.22,0.05823089]
[1764644100627,12.10970976,127.23,127.22,0.05823089]
[1764644100934,8.96970976,127.23,127.22,3.13823089]
[1764644101526,12.10970976,127.23,127.22,0.05823089]
[1764644101727,12.10970976,127.23,127.22,3.13823089]
[1764644101937,12.10970976,127.23,127.22,0.05823089]
[1764644102335,12.11024885,127.23,127.22,3.13823089]
[1764644102539,12.11024885,127.23,127.22,0.05823089]
[1764644104346,8.97024885,127.23,127.22,3.13823089]
[1764644105434,0.05669739,127.24,127.23,10.1542]
[1764644105637,9.01661653,127.24,127.23,10.1542]
[1764644105837,9.01661653,127.24,127.23,12.50011349]
[1764644106034,0.05669739,127.24,127.23,12.50011349]
[1764644110545,3.37,127.23,127.22,0.05823089]
[1764644110751,12.32608587,127.23,127.22,0.05823089]
[1764644111247,12.32626111,127.23,127.22,0.05823089]
[1764644116750,8.95626111,127.23,127.22,3.19823089]
[1764644116954,0.05669739,127.24,127.22,5.54414438]
[1764644117255,3.42669739,127.24,127.22,5.54414438]
[1764644118239,3.42669739,127.24,127.22,0.05823089]
[1764644118555,3.42669739,127.24,127.22,3.19823089]
[1764644121149,0.05669739,127.24,127.22,5.54414438]
[1764644121345,0.05669739,127.24,127.23,3.14]
[1764644121748,12.36361543,127.24,127.22,0.05823089]
[1764644122046,12.30796515,127.23,127.22,0.05823089]
[1764644124355,12.30788118,127.23,127.22,0.05823089]
[1764644125755,8.93788118,127.23,127.22,5.54414438]
[1764644125955,0.05669739,127.24,127.22,5.54414438]
[1764644125956,3.42669739,127.24,127.22,5.54414438]
[1764644126161,3.42669739,127.24,127.22,2.40414438]
[1764644126659,3.42669739,127.24,127.22,5.54414438]
[1764644126859,0.05669739,127.24,127.22,5.54414438]
[1764644131564,0.05669739,127.24,127.22,12.61884438]
[1764644132569,0.05669739,127.24,127.23,3.13]
[1764644135858,3.42669739,127.24,127.23,67.28]
[1764644136870,9.34946009,127.24,127.23,67.28]
[1764644138174,12.32081013,127.24,127.23,67.28]
[1764644139766,3.38,127.23,127.22,0.05823089]
[1764644140066,0.05669739,127.24,127.23,3.15]
[1764644147875,3.38,127.23,127.22,0.05823089]
[1764644148174,3.38,127.22,127.2,67.28]
[1764644148375,12.2746906,127.21,127.2,67.28]
[1764644149074,12.27438331,127.21,127.2,67.28]
[1764644151375,8.89438331,127.21,127.2,70.43]
[1764644151677,3.38,127.23,127.2,70.43]
[1764644151874,8.88943077,127.22,127.2,70.43]
[1764644152179,3.38,127.23,127.2,70.43]
[1764644152378,8.88897845,127.22,127.2,70.43]
[1764644152580,3.38,127.23,127.2,70.43]
[1764644152778,12.26901532,127.22,127.2,70.43]
[1764644152978,3.38,127.22,127.2,70.43]
[1764644154873,8.88900697,127.21,127.2,70.43]
[1764644157378,12.26900697,127.21,127.19,0.05995515]
[1764644157583,10.4575,127.18,127.11,3.15]
[1764644157785,12.26951341,127.17,127.14,3.15]
[1764644157981,8.88951341,127.16,127.14,3.15]
[1764644158178,3.38,127.18,127.14,3.15]
[1764644158682,0.05876255,127.17,127.14,3.15]
[1764644159269,3.43876255,127.17,127.14,3.15]
[1764644159476,0.05876255,127.17,127.14,3.15]
[1764644159673,0.05876255,127.17,127.14,6.8175344]
[1764644159882,0.05876255,127.17,127.15,3.15]
[1764644160782,3.43876255,127.17,127.13,3.15]
[1764644160977,3.43876255,127.17,127.14,70.45]
[1764644161685,3.43876255,127.17,127.14,67.3]
[1764644162184,3.43876255,127.17,127.12,67.3]
[1764644162388,3.38,127.15,127.12,70.45]
[1764644163989,10.4589,127.15,127.12,70.45]
[1764644164589,10.4589,127.15,127.13,3.15]
[1764644165691,10.4589,127.15,127.12,70.45]
[1764644166190,3.38,127.16,127.13,3.15]
[1764644169895,10.4583,127.16,127.13,3.15]
[1764644171492,7.0788,127.15,127.13,3.15]
[1764644174484,3.41876255,127.17,127.13,3.15]
[1764644174485,7.13676255,127.17,127.13,3.15]
[1764644174692,0.05876255,127.17,127.15,3.15]
[1764644178593,0.05876255,127.17,127.1,133.7345]
[1764644178594,3.36,127.11,127.0,110.2396]
[1764644178894,10.44,127.13,127.08,3.6675344]
[1764644179197,10.44,127.13,127.09,67.62]
[1764644179492,10.44,127.13,127.03,110.2146]
[1764644179493,3.36,127.12,127.06,3.6675344]
[1764644179798,3.36,127.12,127.1,67.62]
[1764644180089,3.41720671,127.12,127.1,67.62]
[1764644180296,3.36,127.09,127.08,0.05765177]
[1764644180495,3.36,127.09,127.08,67.69765177]
[1764644181193,10.442,127.1,127.08,67.69765177]
[1764644183290,7.082,127.1,127.08,67.69765177]
[1764644186997,3.36,127.11,127.08,0.05765177]
[1764644187193,3.41720671,127.12,127.09,67.62]
[1764644188503,7.0811,127.11,127.09,67.62]
[1764644188895,10.4411,127.11,127.09,67.62]
[1764644190095,10.4417,127.1,127.08,67.69765177]
[1764644190393,0.05720671,127.12,127.08,67.69765177]
[1764644190599,3.41720671,127.12,127.08,67.69765177]
[1764644191292,10.49780671,127.12,127.08,67.69765177]
[1764644193192,7.081,127.11,127.08,67.69765177]
[1764644196301,10.4416,127.1,127.09,67.62]
[1764644197297,3.36,127.09,127.08,0.05765177]
[1764644200813,7.0816,127.1,127.08,0.05765177]
[1764644201805,3.31,127.09,127.08,0.05765177]
[1764644203601,10.3916,127.1,127.08,0.05765177]
[1764644203802,3.31,127.09,127.08,0.05765177]
[1764644206605,7.0816,127.1,127.08,0.05765177]
[1764644206814,10.44770671,127.12,127.08,0.05765177]
[1764644207811,7.081,127.11,127.08,0.05765177]
[1764644209012,10.3917,127.1,127.08,0.05765177]
[1764644210710,3.31,127.09,127.08,0.05765177]
[1764644215213,10.3932,127.07,127.06,67.58]
[1764644215604,3.31,127.11,127.06,67.58]
[1764644215806,3.31,127.09,127.06,67.58]
[1764644216007,3.31,127.07,127.03,2.35337405]
[1764644216208,3.36589409,127.06,127.04,67.58]
[1764644217319,3.36589409,127.06,127.05,67.6]
[1764644217914,0.05589409,127.06,127.05,67.6]
[1764644219113,3.36589409,127.06,127.05,67.6]
[1764644221511,10.44999409,127.06,127.03,2.35337405]
[1764644221815,10.44999409,127.06,127.04,67.58]
[1764644222010,3.31,127.05,126.98,7.0878]
[1764644222215,3.36858271,127.03,126.98,9.44117405]
[1764644222414,3.36858271,127.03,126.99,67.58]
[1764644223218,7.14398271,127.03,126.99,67.58]
[1764644224019,7.14398271,127.03,127.0,2.35337405]
[1764644227024,7.14398271,127.03,126.99,74.6675]
[1764644227321,7.14398271,127.03,127.0,2.35337405]
[1764644227620,3.31,127.08,127.02,2.35337405]
[1764644227824,3.31,127.08,127.04,2.35337405]
[1764644228122,3.31,127.08,127.05,67.62]
[1764644228821,3.36060491,127.08,127.05,67.67070932]
[1764644229327,7.0836,127.07,127.05,67.67070932]
[1764644229715,0.05060491,127.08,127.06,2.35337405]
[1764644234924,3.45060491,127.08,127.07,67.6]
[1764644235930,3.45060491,127.08,127.07,67.58]
[1764644236431,10.53320491,127.08,127.07,67.58]
[1764644237335,10.53320491,127.08,127.05,0.05070932]
[1764644237336,10.4837,127.06,127.05,0.05070932]
[1764644238534,7.0837,127.06,127.05,0.05070932]
[1764644239539,13.49087879,127.06,127.05,0.05070932]
[1764644243137,10.4837,127.06,127.05,0.05070932]
[1764644243839,3.4,127.05,126.93,62.0]
[1764644244047,113.6532,126.99,126.94,2.35337405]
[1764644244540,10.4877,126.99,126.95,67.62]
[1764644244736,10.4877,126.99,126.96,2.35337405]
[1764644244936,3.4,126.98,126.96,0.02065167]
[1764644245444,3.4,126.97,126.96,0.02065167]
[1764644248044,10.4884,126.98,126.96,0.02065167]
[1764644248245,3.4,126.97,126.96,0.02065167]
[1764644250054,0.05901419,126.99,126.96,0.02065167]
[1764644250346,0.05901419,126.99,126.98,2.35337405]
[1764644252336,0.05901419,126.99,126.97,7.0885]
[1764644253950,3.45901419,126.99,126.96,0.02065167]
[1764644259253,0.05901419,126.99,126.96,0.02065167]
[1764644259455,3.34901419,126.99,126.96,0.02065167]
[1764644259955,3.34901419,126.99,126.88,67.66]
[1764644259956,3.29,126.93,126.88,67.66]
[1764644260951,0.05549566,126.92,126.88,67.66]
[1764644262757,0.05549566,126.92,126.88,74.7536]
[1764644265163,0.05549566,126.92,126.89,7.0931]
[1764644266751,0.05549566,126.92,126.9,7.0924]
[1764644269764,0.05549566,126.92,126.91,67.84]
[1764644284792,0.05549566,126.92,126.91,67.76]
[1764644293898,0.05549566,126.92,126.91,67.72]
[1764644294100,0.05549566,126.92,126.9,7.0924]
[1764644294396,0.05549566,126.92,126.91,67.72]
[1764644294796,0.05549566,126.92,126.9,7.0924]
[1764644294998,0.05549566,126.92,126.91,67.72]
[1764644295899,0.05549566,126.92,126.89,3.68482403]
[1764644296100,0.05549566,126.92,126.9,67.7]
[1764644296407,0.05549566,126.92,126.9,74.7925]
[1764644300103,0.05549566,126.92,126.9,7.0925]
[1764644300297,0.05549566,126.92,126.91,67.68]
[1764644302603,0.05549566,126.92,126.91,71.36482403]
[1764644305806,0.05549566,126.92,126.91,67.66]
[1764644312708,3.36549566,126.92,126.91,67.66]
[1764644313415,0.05549566,126.92,126.91,67.66]
[1764644313608,3.36549566,126.92,126.91,67.66]
[1764644315016,3.36549566,126.92,126.91,67.64]
[1764644318206,0.05549566,126.92,126.91,67.64]
[1764644319221,3.36549566,126.92,126.91,67.64]
[1764644319412,0.05549566,126.92,126.91,67.64]
[1764644327526,0.05549566,126.92,126.9,9.45084363]
[1764644327727,0.05549566,126.92,126.91,67.6]
[1764644336436,3.36549566,126.92,126.9,2.35834363]
[1764644336733,3.36549566,126.92,126.91,67.54]
[1764644339838,3.36549566,126.92,126.89,9.45144363]
[1764644340032,3.36549566,126.92,126.9,67.56]
[1764644345244,0.05549566,126.92,126.9,74.6525]
[1764644345447,0.05549566,126.92,126.91,2.35834363]
[1764644367958,0.05549566,126.92,126.9,74.6525]
[1764644367959,3.36549566,126.92,126.9,7.0925]
[1764644368165,9.34102239,126.91,126.89,67.54]
[1764644368367,3.31,126.91,126.89,67.54]
[1764644373473,3.31,126.91,126.88,2.35834363]
[1764644373671,3.31,126.91,126.89,67.58]
[1764644374172,10.4022,126.91,126.85,28.03003379]
[1764644374469,0.05370863,126.89,126.86,69.93834363]
[1764644374867,0.05370863,126.89,126.85,35.12513379]
[1764644375063,0.05370863,126.89,126.85,28.03003379]
[1764644375260,0.05370863,126.89,126.86,69.93834363]
[1764644375977,3.36370863,126.89,126.86,69.93834363]
[1764644376177,0.05370863,126.89,126.86,69.93834363]
[1764644376777,3.36370863,126.89,126.86,2.35834363]
[1764644376973,3.36370863,126.89,126.87,67.56]
[1764644377283,3.32,126.88,126.87,67.56]
[1764644379079,3.27370863,126.89,126.87,67.56]
[1764644382974,3.27370863,126.89,126.85,4.71108796]
[1764644383177,3.27370863,126.89,126.86,67.56]
[1764644385386,3.27370863,126.89,126.85,4.71108796]
[1764644385586,3.27370863,126.89,126.86,67.56]
[1764644386888,3.27370863,126.89,126.85,4.71108796]
[1764644387081,3.27370863,126.89,126.86,67.56]
[1764644387389,3.27370863,126.89,126.85,4.71108796]
[1764644387591,3.27370863,126.89,126.86,67.56]
[1764644388775,3.22,126.92,126.88,3.68809661]
[1764644388983,3.22,126.92,126.86,67.56]
[1764644389186,3.22,126.92,126.85,4.71108796]
[1764644389379,3.22,126.92,126.86,71.24809661]
[1764644389586,0.05914539,126.9,126.88,0.05370863]
[1764644391093,3.27914539,126.9,126.88,0.05370863]
[1764644391690,0.05914539,126.9,126.88,0.05370863]
[1764644391916,0.05914539,126.9,126.88,3.74180524]
[1764644392194,0.05914539,126.9,126.88,0.05370863]
[1764644395700,3.27914539,126.9,126.88,0.05370863]
[1764644396298,0.05914539,126.9,126.88,0.05370863]
[1764644398399,3.27914539,126.9,126.88,0.05370863]
[1764644398602,0.05914539,126.9,126.88,0.05370863]
[1764644400207,3.27914539,126.9,126.88,0.05370863]
[1764644401303,3.22,126.89,126.88,0.05370863]
[1764644402300,0.05914539,126.9,126.88,0.05370863]
[1764644403905,10.3108,126.94,126.89,3.68809661]
[1764644404097,3.22,126.93,126.9,67.56]
[1764644404600,3.22,126.93,126.86,7.0945]
[1764644404805,3.22,126.9,126.88,0.059131]
[1764644405108,3.27203726,126.91,126.88,0.059131]
[1764644406306,10.36463726,126.91,126.88,0.059131]
[1764644406507,3.22,126.9,126.88,0.059131]
[1764644411402,10.3127,126.9,126.88,0.059131]
[1764644411600,3.34,126.89,126.88,0.059131]
[1764644412607,3.34,126.87,126.85,72.27108796]
[1764644413308,3.34,126.86,126.85,72.27108796]
[1764644414308,3.3992031,126.87,126.85,72.27108796]
[1764644419912,0.0592031,126.87,126.85,72.27108796]
[1764644421613,3.3992031,126.87,126.85,72.27108796]
[1764644422818,10.4936031,126.87,126.85,72.27108796]
[1764644425014,7.1536031,126.87,126.85,72.27108796]
[1764644428828,0.0592031,126.87,126.85,72.27108796]
[1764644429127,3.3992031,126.87,126.85,72.27108796]
[1764644435044,0.0592031,126.87,126.85,72.27108796]
[1764644436133,7.1536031,126.87,126.85,72.27108796]
[1764644436442,10.4436031,126.87,126.85,72.27108796]
[1764644439147,7.1536031,126.87,126.85,72.27108796]
[1764644442544,7.1536031,126.87,126.85,74.63159363]
[1764644442847,0.0592031,126.87,126.85,74.63159363]
[1764644446345,7.0937,126.89,126.85,74.63159363]
[1764644446749,7.0923,126.91,126.87,2.36050567]
[1764644447054,7.0923,126.91,126.89,2.36050567]
[1764644447343,7.14726307,126.91,126.89,2.41969011]
[1764644450848,7.14726307,126.91,126.89,0.05918444]
[1764644451552,0.05496307,126.91,126.89,0.05918444]
[1764644452945,0.05496307,126.91,126.9,2.36050567]
[1764644458957,0.05496307,126.91,126.9,69.92050567]
[1764644468460,3.23496307,126.91,126.89,0.05918444]
[1764644468667,3.18,126.9,126.85,72.25108796]
[1764644469555,3.18,126.9,126.86,0.05186423]
[1764644470057,10.2727,126.9,126.86,0.05186423]
[1764644470360,3.18,126.89,126.86,0.05186423]
[1764644471766,3.18,126.88,126.86,2.4123699]
[1764644471965,3.23035107,126.88,126.86,0.05186423]
[1764644472165,0.05035107,126.88,126.86,0.05186423]
[1764644473170,0.05035107,126.88,126.73,19.53381554]
[1764644473171,3.18,126.78,126.73,19.53381554]
[1764644473359,3.18,126.82,126.76,2.36050567]
[1764644474253,3.24015383,126.8,126.74,67.74]
[1764644474459,3.18,126.79,126.75,67.74]
[1764644474656,3.18,126.77,126.75,67.74]
[1764644475065,3.23654029,126.77,126.75,67.74]
[1764644475257,3.18,126.76,126.73,67.76]
[1764644477669,3.23654029,126.77,126.73,67.76]
[1764644477869,0.05654029,126.77,126.76,2.36050567]
[1764644478970,10.2767,126.83,126.76,2.36050567]
[1764644479171,3.18,126.82,126.78,2.36050567]
[1764644479372,3.18,126.82,126.79,67.78]
[1764644479867,3.2348007,126.82,126.79,67.83115898]
[1764644480171,0.0548007,126.82,126.79,67.83115898]
[1764644480674,0.0548007,126.82,126.8,2.36050567]
[1764644481770,0.0548007,126.82,126.81,67.78]
[1764644482973,0.0548007,126.82,126.8,2.36050567]
[1764644483175,0.0548007,126.82,126.81,67.78]
[1764644486878,3.2348007,126.82,126.81,67.78]
[1764644487177,0.0548007,126.82,126.81,67.78]
[1764644491968,0.0548007,126.82,126.81,67.74]
[1764644492178,0.0548007,126.82,126.81,70.10050567]
[1764644492473,0.0548007,126.82,126.79,0.05115898]
[1764644492666,0.0548007,126.82,126.8,70.10050567]
[1764644496876,7.1522007,126.82,126.8,2.36050567]
[1764644497072,10.3122007,126.82,126.8,67.7]
[1764644497674,7.0978,126.81,126.79,0.05115898]
[1764644497875,10.2578,126.81,126.79,0.05115898]
[1764644499781,3.16,126.81,126.79,0.05115898]
[1764644500779,3.2448007,126.82,126.79,0.05115898]
[1764644501180,3.2448007,126.82,126.79,2.41166465]
[1764644502377,3.2448007,126.82,126.79,0.05115898]
[1764644507880,0.0548007,126.82,126.79,0.05115898]
[1764644511486,0.0548007,126.82,126.79,7.14985898]
[1764644517190,3.2448007,126.82,126.79,0.05115898]
[1764644517392,3.2448007,126.82,126.79,67.67115898]
[1764644517991,10.2878,126.81,126.79,67.67115898]
[1764644519192,3.19,126.81,126.79,67.67115898]
[1764644523004,10.2879,126.81,126.79,0.05115898]
[1764644523206,3.19,126.8,126.79,67.65115898]
[1764644523603,7.0979,126.81,126.79,67.65115898]
[1764644523809,10.2879,126.81,126.79,67.65115898]
[1764644524705,3.19,126.8,126.79,67.65115898]